[Event "*** Titled Tuesday Blitz"]
[Site "Chess.com"]
[Date "2020.12.29"]
[Round "2"]
[White "IMUffeVinther-Schou"]
[Black "Vesper2018"]
[Result "1-0"]
[WhiteElo "2390"]
[BlackElo "2641"]
[TimeControl "180+1"]
[EndTime "10:18:09 PST"]
[Termination "IMUffeVinther-Schou won on time"]

1. e4 {[%clk 0:03:00.8]} 1... c5 {[%clk 0:02:59.4]} 2. Nf3 {[%clk 0:03:00.1]}
2... d6 {[%clk 0:02:59.3]} 3. Bb5+ {[%clk 0:02:59.1]} 3... Bd7 {[%clk
0:02:57.5]} 4. a4 {[%clk 0:02:58.5]} 4... Nf6 {[%clk 0:02:54.1]} 5. d3 {[%clk
0:02:58.1]} 5... g6 {[%clk 0:02:53.3]} 6. O-O {[%clk 0:02:57.6]} 6... Bg7 {[%clk
0:02:53.4]} 7. Re1 {[%clk 0:02:57.3]} 7... O-O {[%clk 0:02:52.5]} 8. Nbd2 {[%clk
0:02:56.6]} 8... Nc6 {[%clk 0:02:41.4]} 9. Nc4 {[%clk 0:02:55.9]} 9... Nd4
{[%clk 0:02:26.6]} 10. Nxd4 {[%clk 0:02:26.7]} 10... cxd4 {[%clk 0:02:25.7]} 11.
Bg5 {[%clk 0:02:09.9]} 11... Be6 {[%clk 0:02:03.6]} 12. e5 {[%clk 0:01:58.9]}
12... dxe5 {[%clk 0:01:57.4]} 13. Nxe5 {[%clk 0:01:58.2]} 13... Nd5 {[%clk
0:01:53.2]} 14. Bc4 {[%clk 0:01:51]} 14... f6 {[%clk 0:01:36.8]} 15. Nxg6 {[%clk
0:01:40.7]} 15... hxg6 {[%clk 0:01:34.2]} 16. Rxe6 {[%clk 0:01:39.9]} 16... fxg5
{[%clk 0:01:34]} 17. Rxg6 {[%clk 0:01:37.5]} 17... Rf5 {[%clk 0:01:20.6]} 18.
Qe2 {[%clk 0:01:23.2]} 18... Qd7 {[%clk 0:01:15.1]} 19. Re1 {[%clk 0:01:17.7]}
19... Kf8 {[%clk 0:00:36.2]} 20. Re6 {[%clk 0:01:02.9]} 20... Bf6 {[%clk
0:00:33.9]} 21. Qg4 {[%clk 0:00:55.9]} 21... Rf4 {[%clk 0:00:19.5]} 22. Qh5
{[%clk 0:00:55.2]} 22... Kg7 {[%clk 0:00:19.3]} 23. Bxd5 {[%clk 0:00:52.1]}
23... Qxd5 {[%clk 0:00:18.7]} 24. Rxe7+ {[%clk 0:00:51.9]} 24... Bxe7 {[%clk
0:00:18.9]} 25. Rxe7+ {[%clk 0:00:51.4]} 25... Rf7 {[%clk 0:00:19]} 26. Re4
{[%clk 0:00:48.9]} 26... Rh8 {[%clk 0:00:17.6]} 27. Qg4 {[%clk 0:00:47.7]} 27...
Qf5 {[%clk 0:00:17.8]} 28. Qg3 {[%clk 0:00:46.5]} 28... Kg6 {[%clk 0:00:15]} 29.
h4 {[%clk 0:00:43.5]} 29... Rd8 {[%clk 0:00:04.9]} 30. hxg5 {[%clk 0:00:40.9]}
30... Rh8 {[%clk 0:00:03.2]} 31. Qd6+ {[%clk 0:00:35.8]} 31... Kxg5 {[%clk
0:00:02]} 32. Qg3+ {[%clk 0:00:11.9]} 1-0

[Event "*** Titled Tuesday Blitz"]
[Site "Chess.com"]
[Date "2020.12.29"]
[Round "2"]
[White "Anton_Zhukov04"]
[Black "Ladislav1969"]
[Result "1-0"]
[WhiteElo "2182"]
[BlackElo "2389"]
[TimeControl "180+1"]
[EndTime "10:18:09 PST"]
[Termination "Anton_Zhukov04 won by resignation"]

1. e4 {[%clk 0:03:00.9]} 1... c5 {[%clk 0:03:00]} 2. Nf3 {[%clk 0:03:00.9]} 2...
e6 {[%clk 0:03:00.9]} 3. d4 {[%clk 0:03:00.6]} 3... cxd4 {[%clk 0:03:01.8]} 4.
Nxd4 {[%clk 0:03:01.1]} 4... a6 {[%clk 0:03:02.7]} 5. Nc3 {[%clk 0:02:55.9]}
5... b5 {[%clk 0:03:02.7]} 6. a3 {[%clk 0:02:54.3]} 6... Bb7 {[%clk 0:03:03.2]}
7. f3 {[%clk 0:02:49.7]} 7... Qc7 {[%clk 0:03:02.5]} 8. Be3 {[%clk 0:02:49.8]}
8... Nf6 {[%clk 0:03:00.8]} 9. Qd2 {[%clk 0:02:49.7]} 9... d5 {[%clk 0:03:00.8]}
10. exd5 {[%clk 0:02:47.8]} 10... Nxd5 {[%clk 0:03:01.1]} 11. Nxd5 {[%clk
0:02:48]} 11... Bxd5 {[%clk 0:03:01.2]} 12. Bd3 {[%clk 0:02:48.5]} 12... Nd7
{[%clk 0:02:57.9]} 13. O-O {[%clk 0:02:46.6]} 13... Bd6 {[%clk 0:02:50.4]} 14.
g3 {[%clk 0:02:36.9]} 14... Nc5 {[%clk 0:02:39.9]} 15. Be2 {[%clk 0:02:32.3]}
15... O-O {[%clk 0:02:38.4]} 16. Rad1 {[%clk 0:02:30.1]} 16... Rac8 {[%clk
0:02:31]} 17. Bxb5 {[%clk 0:02:08.9]} 17... Bxg3 {[%clk 0:02:15]} 18. hxg3
{[%clk 0:02:03.4]} 18... Qxg3+ {[%clk 0:02:14.9]} 19. Qg2 {[%clk 0:02:03.9]}
19... Qxg2+ {[%clk 0:02:12.1]} 20. Kxg2 {[%clk 0:02:04.8]} 20... axb5 {[%clk
0:02:12.4]} 21. Nxb5 {[%clk 0:02:04.9]} 21... Na4 {[%clk 0:02:07.8]} 22. Bd4
{[%clk 0:01:52.2]} 22... Rxc2+ {[%clk 0:02:06.4]} 23. Rf2 {[%clk 0:01:52.2]}
23... Rxf2+ {[%clk 0:01:54.2]} 24. Kxf2 {[%clk 0:01:53.1]} 24... Rb8 {[%clk
0:01:54.2]} 25. Rc1 {[%clk 0:01:42.5]} 25... f6 {[%clk 0:01:50.1]} 26. Nd6
{[%clk 0:01:35.6]} 26... Nxb2 {[%clk 0:01:49]} 27. Kg3 {[%clk 0:01:10.3]} 27...
Nd3 {[%clk 0:01:42.3]} 28. Rc3 {[%clk 0:01:02.8]} 28... Ne5 {[%clk 0:01:36.4]}
29. Bxe5 {[%clk 0:01:01.1]} 29... fxe5 {[%clk 0:01:36.2]} 30. a4 {[%clk
0:01:01.6]} 30... h5 {[%clk 0:01:16.6]} 31. a5 {[%clk 0:00:59]} 31... Ra8 {[%clk
0:01:13.9]} 32. Rc8+ {[%clk 0:00:45]} 32... Rxc8 {[%clk 0:01:11.3]} 33. Nxc8
{[%clk 0:00:45.9]} 33... g5 {[%clk 0:01:06.5]} 34. Ne7+ {[%clk 0:00:36.7]} 34...
Kf7 {[%clk 0:01:05.4]} 35. Nxd5 {[%clk 0:00:36.9]} 35... h4+ {[%clk 0:01:01.1]}
36. Kg4 {[%clk 0:00:35.4]} 36... e4 {[%clk 0:00:46.7]} 37. a6 {[%clk 0:00:23.4]}
37... exd5 {[%clk 0:00:44.9]} 38. a7 {[%clk 0:00:20.5]} 38... exf3 {[%clk
0:00:44.8]} 39. a8=Q {[%clk 0:00:20.1]} 39... f2 {[%clk 0:00:45.1]} 40. Qxd5+
{[%clk 0:00:20.1]} 40... Ke8 {[%clk 0:00:44.2]} 41. Qe6+ {[%clk 0:00:16.6]}
41... Kd8 {[%clk 0:00:44.4]} 42. Qf6+ {[%clk 0:00:17.1]} 42... Kc7 {[%clk
0:00:45.3]} 43. Qxf2 {[%clk 0:00:16.9]} 43... Kc6 {[%clk 0:00:45.6]} 44. Kxg5
{[%clk 0:00:17.1]} 44... Kb7 {[%clk 0:00:45.5]} 45. Kxh4 {[%clk 0:00:17]} 45...
Kc7 {[%clk 0:00:46.4]} 46. Qd4 {[%clk 0:00:16.5]} 46... Kc6 {[%clk 0:00:46.5]}
47. Qe5 {[%clk 0:00:16.6]} 47... Kb7 {[%clk 0:00:47.4]} 48. Kg5 {[%clk
0:00:15.5]} 48... Kc6 {[%clk 0:00:47.3]} 49. Kf6 {[%clk 0:00:15.6]} 49... Kb6
{[%clk 0:00:48.2]} 50. Qc3 {[%clk 0:00:15.2]} 50... Kb7 {[%clk 0:00:49.1]} 51.
Ke6 {[%clk 0:00:15.5]} 51... Kb6 {[%clk 0:00:48.9]} 52. Kd6 {[%clk 0:00:15.9]}
52... Ka7 {[%clk 0:00:48.5]} 53. Qb4 {[%clk 0:00:15.6]} 53... Ka8 {[%clk
0:00:49.4]} 54. Kc7 {[%clk 0:00:15.6]} 1-0

[Event "*** Titled Tuesday Blitz"]
[Site "Chess.com"]
[Date "2020.12.29"]
[Round "2"]
[White "lavr92"]
[Black "Oleksandr_Bortnyk"]
[Result "1-0"]
[WhiteElo "2606"]
[BlackElo "2921"]
[TimeControl "180+1"]
[EndTime "10:18:10 PST"]
[Termination "lavr92 won by checkmate"]

1. d4 {[%clk 0:03:00.9]} 1... Nf6 {[%clk 0:02:58.9]} 2. c4 {[%clk 0:03:01]} 2...
e6 {[%clk 0:02:55.9]} 3. Nc3 {[%clk 0:03:01.1]} 3... d5 {[%clk 0:02:46.1]} 4.
cxd5 {[%clk 0:03:00.9]} 4... exd5 {[%clk 0:02:46.1]} 5. Bg5 {[%clk 0:03:01.1]}
5... Be6 {[%clk 0:02:41.1]} 6. e3 {[%clk 0:02:53.5]} 6... a6 {[%clk 0:02:40.6]}
7. Bd3 {[%clk 0:02:51.6]} 7... h6 {[%clk 0:02:40.6]} 8. Bh4 {[%clk 0:02:50.9]}
8... g5 {[%clk 0:02:39.8]} 9. Bg3 {[%clk 0:02:50.5]} 9... Bd6 {[%clk 0:02:39.4]}
10. Nge2 {[%clk 0:02:47]} 10... Nc6 {[%clk 0:02:34.3]} 11. h4 {[%clk 0:02:32.6]}
11... Rg8 {[%clk 0:02:14.8]} 12. hxg5 {[%clk 0:02:32.1]} 12... hxg5 {[%clk
0:02:15.7]} 13. a3 {[%clk 0:02:30.8]} 13... Qd7 {[%clk 0:02:03.6]} 14. Qc2
{[%clk 0:02:26.9]} 14... O-O-O {[%clk 0:02:01.5]} 15. b4 {[%clk 0:02:25.2]}
15... Rh8 {[%clk 0:01:51.8]} 16. Rg1 {[%clk 0:01:58.5]} 16... Na7 {[%clk
0:01:40.2]} 17. Na4 {[%clk 0:01:53.7]} 17... Kb8 {[%clk 0:01:18.5]} 18. Nc5
{[%clk 0:01:50.7]} 18... Bxc5 {[%clk 0:01:10.5]} 19. bxc5 {[%clk 0:01:50.4]}
19... Ne4 {[%clk 0:01:11.4]} 20. Rb1 {[%clk 0:01:46.7]} 20... Ka8 {[%clk
0:01:06.1]} 21. f3 {[%clk 0:01:33.2]} 21... Nxg3 {[%clk 0:01:02.1]} 22. Nxg3
{[%clk 0:01:34.1]} 22... Rdf8 {[%clk 0:00:42.8]} 23. Rb3 {[%clk 0:00:41.7]}
23... f5 {[%clk 0:00:36.7]} 24. Qb2 {[%clk 0:00:41.5]} 24... f4 {[%clk
0:00:30.7]} 25. exf4 {[%clk 0:00:41.2]} 25... gxf4 {[%clk 0:00:29]} 26. Ne2
{[%clk 0:00:41.5]} 26... Qc6 {[%clk 0:00:22.4]} 27. Kd2 {[%clk 0:00:36.6]} 27...
Rhg8 {[%clk 0:00:20.7]} 28. Rb1 {[%clk 0:00:36.5]} 28... Bc8 {[%clk 0:00:12.9]}
29. a4 {[%clk 0:00:29]} 29... Rxg2 {[%clk 0:00:10.2]} 30. Bb5 {[%clk 0:00:28.7]}
30... axb5 {[%clk 0:00:07]} 31. axb5 {[%clk 0:00:26.4]} 31... Qe6 {[%clk
0:00:07.7]} 32. Re1 {[%clk 0:00:26]} 32... Re8 {[%clk 0:00:07.5]} 33. Kd1 {[%clk
0:00:25.6]} 33... Kb8 {[%clk 0:00:06.1]} 34. b6 {[%clk 0:00:15.2]} 34... cxb6
{[%clk 0:00:07]} 35. cxb6 {[%clk 0:00:16.1]} 35... Nc6 {[%clk 0:00:06.7]} 36.
Qa2 {[%clk 0:00:16.6]} 36... Bd7 {[%clk 0:00:02.3]} 37. Rc3 {[%clk 0:00:14.3]}
37... Nb4 {[%clk 0:00:02.3]} 38. Qa7# {[%clk 0:00:13.6]} 1-0

[Event "*** Titled Tuesday Blitz"]
[Site "Chess.com"]
[Date "2020.12.29"]
[Round "2"]
[White "bazar-wokzal"]
[Black "Vuk2000"]
[Result "1-0"]
[WhiteElo "2558"]
[BlackElo "2822"]
[TimeControl "180+1"]
[EndTime "10:18:10 PST"]
[Termination "bazar-wokzal won by checkmate"]

1. e4 {[%clk 0:03:00.9]} 1... e6 {[%clk 0:02:59.6]} 2. d4 {[%clk 0:03:00.6]}
2... d5 {[%clk 0:03:00.3]} 3. exd5 {[%clk 0:03:00.9]} 3... exd5 {[%clk
0:03:00.3]} 4. Nf3 {[%clk 0:03:00.6]} 4... Bd6 {[%clk 0:03:00.6]} 5. c4 {[%clk
0:03:00.4]} 5... dxc4 {[%clk 0:02:57.4]} 6. Bxc4 {[%clk 0:02:59.9]} 6... Nf6
{[%clk 0:02:57.6]} 7. O-O {[%clk 0:02:59.5]} 7... O-O {[%clk 0:02:57.6]} 8. Nc3
{[%clk 0:02:59.3]} 8... Bg4 {[%clk 0:02:52.8]} 9. h3 {[%clk 0:02:58.1]} 9... Bh5
{[%clk 0:02:51.2]} 10. g4 {[%clk 0:02:56.3]} 10... Bg6 {[%clk 0:02:51.3]} 11.
Ne5 {[%clk 0:02:56.5]} 11... Ne4 {[%clk 0:02:19.9]} 12. f4 {[%clk 0:02:46.4]}
12... Nxc3 {[%clk 0:02:19.1]} 13. bxc3 {[%clk 0:02:46.1]} 13... Be4 {[%clk
0:02:05.2]} 14. Qb3 {[%clk 0:02:27.6]} 14... Qe7 {[%clk 0:01:24.3]} 15. Bd2
{[%clk 0:02:25.4]} 15... Nc6 {[%clk 0:01:17.2]} 16. Rae1 {[%clk 0:02:22.4]}
16... Na5 {[%clk 0:01:16.6]} 17. Bxf7+ {[%clk 0:02:18.6]} 17... Rxf7 {[%clk
0:00:55.2]} 18. Qxf7+ {[%clk 0:02:15.4]} 18... Qxf7 {[%clk 0:00:55.5]} 19. Nxf7
{[%clk 0:02:16.2]} 19... Bd3 {[%clk 0:00:53.7]} 20. Rf3 {[%clk 0:02:09.6]} 20...
Kxf7 {[%clk 0:00:53.6]} 21. Rxd3 {[%clk 0:02:08.9]} 21... Nc4 {[%clk 0:00:54.3]}
22. Bc1 {[%clk 0:02:08.9]} 22... b5 {[%clk 0:00:53.3]} 23. f5 {[%clk 0:02:05.3]}
23... a5 {[%clk 0:00:51.1]} 24. Kg2 {[%clk 0:01:43.2]} 24... b4 {[%clk
0:00:49.8]} 25. cxb4 {[%clk 0:01:42.7]} 25... axb4 {[%clk 0:00:48.4]} 26. Re2
{[%clk 0:01:43.1]} 26... Nb6 {[%clk 0:00:44.9]} 27. d5 {[%clk 0:01:35]} 27...
Na4 {[%clk 0:00:44.4]} 28. Bd2 {[%clk 0:01:30.9]} 28... Nb2 {[%clk 0:00:39]} 29.
Rb3 {[%clk 0:01:22.6]} 29... Nc4 {[%clk 0:00:17.3]} 30. Bxb4 {[%clk 0:01:19.8]}
30... Be5 {[%clk 0:00:17]} 31. Bc3 {[%clk 0:01:13.4]} 31... Bd6 {[%clk
0:00:16.6]} 32. Bd4 {[%clk 0:01:05.1]} 32... Ra5 {[%clk 0:00:15]} 33. Rc3 {[%clk
0:00:57.4]} 33... Na3 {[%clk 0:00:13.7]} 34. Be5 {[%clk 0:00:52.2]} 34... Nb5
{[%clk 0:00:06.2]} 35. Rcc2 {[%clk 0:00:39.2]} 35... Na3 {[%clk 0:00:06]} 36.
Rc6 {[%clk 0:00:35.3]} 36... Rxd5 {[%clk 0:00:06]} 37. Bxd6 {[%clk 0:00:34.1]}
37... cxd6 {[%clk 0:00:06.9]} 38. Rc7+ {[%clk 0:00:32.4]} 38... Kf6 {[%clk
0:00:07.3]} 39. h4 {[%clk 0:00:25.2]} 39... h5 {[%clk 0:00:03.6]} 40. Re6#
{[%clk 0:00:23.6]} 1-0

[Event "*** Titled Tuesday Blitz"]
[Site "Chess.com"]
[Date "2020.12.29"]
[Round "2"]
[White "ChessyInstinct"]
[Black "Tssunami"]
[Result "1-0"]
[WhiteElo "2513"]
[BlackElo "2310"]
[TimeControl "180+1"]
[EndTime "10:18:10 PST"]
[Termination "ChessyInstinct won by resignation"]

1. d4 {[%clk 0:03:00.9]} 1... Nf6 {[%clk 0:02:16.2]} 2. c4 {[%clk 0:03:00.6]}
2... e6 {[%clk 0:02:15.3]} 3. g3 {[%clk 0:03:00.9]} 3... d5 {[%clk 0:02:08.9]}
4. Nf3 {[%clk 0:03:01.1]} 4... Be7 {[%clk 0:02:06.8]} 5. Bg2 {[%clk 0:03:01.3]}
5... O-O {[%clk 0:02:07.4]} 6. O-O {[%clk 0:03:01.9]} 6... c6 {[%clk 0:02:07.7]}
7. Qc2 {[%clk 0:03:02.1]} 7... b6 {[%clk 0:02:07.4]} 8. Nbd2 {[%clk 0:03:02.3]}
8... Ba6 {[%clk 0:02:07.8]} 9. b3 {[%clk 0:02:55.7]} 9... Nbd7 {[%clk
0:02:03.1]} 10. Bb2 {[%clk 0:02:47.5]} 10... Rc8 {[%clk 0:01:59]} 11. e4 {[%clk
0:02:45.2]} 11... Qc7 {[%clk 0:01:52]} 12. e5 {[%clk 0:02:11.8]} 12... Ne8
{[%clk 0:01:43.6]} 13. Rfe1 {[%clk 0:02:12.1]} 13... Qb8 {[%clk 0:01:29.8]} 14.
Rac1 {[%clk 0:02:06.4]} 14... Nc7 {[%clk 0:01:28.5]} 15. h4 {[%clk 0:01:49.1]}
15... c5 {[%clk 0:01:27.7]} 16. Qb1 {[%clk 0:01:49]} 16... dxc4 {[%clk
0:01:26.5]} 17. bxc4 {[%clk 0:01:32.7]} 17... Bb7 {[%clk 0:01:21.5]} 18. Ne4
{[%clk 0:01:20.3]} 18... cxd4 {[%clk 0:01:16.2]} 19. Nd6 {[%clk 0:00:39.7]}
19... Bxf3 {[%clk 0:01:13.1]} 20. Nxc8 {[%clk 0:00:36.9]} 20... Rxc8 {[%clk
0:00:41.2]} 21. Bxf3 {[%clk 0:00:36.5]} 21... Bc5 {[%clk 0:00:40.2]} 22. Rcd1
{[%clk 0:00:30]} 22... Nf8 {[%clk 0:00:32.7]} 23. Bxd4 {[%clk 0:00:28.2]} 23...
Na6 {[%clk 0:00:32.4]} 24. Qb5 {[%clk 0:00:19.6]} 24... Bxd4 {[%clk 0:00:30.2]}
25. Rxd4 {[%clk 0:00:20.5]} 25... Nc5 {[%clk 0:00:30.2]} 26. h5 {[%clk
0:00:15.2]} 26... h6 {[%clk 0:00:29.3]} 27. Qb1 {[%clk 0:00:13.1]} 27... Nh7
{[%clk 0:00:28.9]} 28. Bg2 {[%clk 0:00:12.5]} 28... Ng5 {[%clk 0:00:28]} 29. f4
{[%clk 0:00:12.8]} 29... Nh7 {[%clk 0:00:28]} 30. Red1 {[%clk 0:00:13]} 30...
Nf8 {[%clk 0:00:27.4]} 31. R1d2 {[%clk 0:00:12.1]} 31... Qc7 {[%clk 0:00:27.4]}
32. Qd1 {[%clk 0:00:12.6]} 32... Na4 {[%clk 0:00:25.4]} 33. Qxa4 {[%clk
0:00:11.8]} 33... Qc5 {[%clk 0:00:25.7]} 34. Qd1 {[%clk 0:00:11.6]} 34... a5
{[%clk 0:00:23.2]} 35. Kh1 {[%clk 0:00:11.8]} 35... a4 {[%clk 0:00:23.6]} 36.
Rd8 {[%clk 0:00:11.8]} 36... Rxd8 {[%clk 0:00:22.8]} 37. Rxd8 {[%clk 0:00:12.7]}
37... a3 {[%clk 0:00:22.2]} 38. Qd6 {[%clk 0:00:12.8]} 38... Qxd6 {[%clk
0:00:20.1]} 39. exd6 {[%clk 0:00:13.7]} 39... f6 {[%clk 0:00:20.4]} 40. Bh3
{[%clk 0:00:13]} 40... Kf7 {[%clk 0:00:20.7]} 41. f5 {[%clk 0:00:13.2]} 41... e5
{[%clk 0:00:20.6]} 42. Bg2 {[%clk 0:00:13.4]} 42... b5 {[%clk 0:00:19.8]} 43.
Bd5+ {[%clk 0:00:13.9]} 1-0

[Event "*** Titled Tuesday Blitz"]
[Site "Chess.com"]
[Date "2020.12.29"]
[Round "2"]
[White "Ave_Mariia"]
[Black "lamomiablanca"]
[Result "1-0"]
[WhiteElo "2496"]
[BlackElo "2300"]
[TimeControl "180+1"]
[EndTime "10:18:11 PST"]
[Termination "Ave_Mariia won on time"]

1. d4 {[%clk 0:03:00.9]} 1... Nf6 {[%clk 0:02:57.8]} 2. c4 {[%clk 0:03:01.1]}
2... b6 {[%clk 0:02:57.5]} 3. Nc3 {[%clk 0:02:59.6]} 3... Bb7 {[%clk 0:02:56.9]}
4. Qc2 {[%clk 0:02:55.8]} 4... d5 {[%clk 0:02:40]} 5. cxd5 {[%clk 0:02:43]} 5...
Nxd5 {[%clk 0:02:37]} 6. Nf3 {[%clk 0:02:37.8]} 6... e6 {[%clk 0:02:31.2]} 7. e4
{[%clk 0:02:35.2]} 7... Nxc3 {[%clk 0:02:27]} 8. bxc3 {[%clk 0:02:36.1]} 8...
Be7 {[%clk 0:02:24]} 9. Bb5+ {[%clk 0:02:32.4]} 9... c6 {[%clk 0:02:13.9]} 10.
Bd3 {[%clk 0:02:30.1]} 10... O-O {[%clk 0:02:13.2]} 11. O-O {[%clk 0:02:25.8]}
11... c5 {[%clk 0:02:13.4]} 12. Rd1 {[%clk 0:02:18.9]} 12... Nc6 {[%clk
0:02:08.1]} 13. d5 {[%clk 0:02:16.1]} 13... Na5 {[%clk 0:02:00.9]} 14. Bf4
{[%clk 0:01:57.9]} 14... c4 {[%clk 0:01:50.8]} 15. Be2 {[%clk 0:01:56.3]} 15...
exd5 {[%clk 0:01:45.7]} 16. exd5 {[%clk 0:01:44.8]} 16... Bc5 {[%clk 0:01:44.5]}
17. Ng5 {[%clk 0:01:33.1]} 17... g6 {[%clk 0:01:37.8]} 18. Ne4 {[%clk
0:01:31.7]} 18... Be7 {[%clk 0:01:11.6]} 19. d6 {[%clk 0:01:29.2]} 19... Bf6
{[%clk 0:01:10.7]} 20. Bf3 {[%clk 0:01:13]} 20... Re8 {[%clk 0:00:53.7]} 21. d7
{[%clk 0:01:06.6]} 21... Re6 {[%clk 0:00:42.3]} 22. Rd2 {[%clk 0:00:49.7]} 22...
Be7 {[%clk 0:00:31.8]} 23. Rad1 {[%clk 0:00:48.2]} 23... f5 {[%clk 0:00:27.2]}
24. Nd6 {[%clk 0:00:36.2]} 24... Bxf3 {[%clk 0:00:25.3]} 25. gxf3 {[%clk
0:00:37]} 25... Bxd6 {[%clk 0:00:14.9]} 26. Rxd6 {[%clk 0:00:34.2]} 26... Rxd6
{[%clk 0:00:13.4]} 27. Rxd6 {[%clk 0:00:35.1]} 27... Nb7 {[%clk 0:00:13.4]} 28.
Rd4 {[%clk 0:00:31.5]} 28... Nc5 {[%clk 0:00:12.8]} 29. Qe2 {[%clk 0:00:31.2]}
29... Kf7 {[%clk 0:00:10]} 30. Qxc4+ {[%clk 0:00:31.3]} 30... Kg7 {[%clk
0:00:07.5]} 31. Qd5 {[%clk 0:00:30.5]} 31... Qe7 {[%clk 0:00:04.3]} 32. Be5+
{[%clk 0:00:30.5]} 32... Kh6 {[%clk 0:00:03.8]} 33. d8=Q {[%clk 0:00:28.2]}
33... Rxd8 {[%clk 0:00:02.8]} 34. Bf4+ {[%clk 0:00:24]} 34... g5 {[%clk
0:00:01.3]} 35. Qxd8 {[%clk 0:00:22.9]} 35... Qe1+ {[%clk 0:00:01.3]} 36. Kg2
{[%clk 0:00:22.5]} 36... gxf4 {[%clk 0:00:01.9]} 37. Rd6+ {[%clk 0:00:20.3]}
37... Kg7 {[%clk 0:00:01.5]} 38. Qf6+ {[%clk 0:00:19.8]} 38... Kg8 {[%clk
0:00:01.1]} 39. Rd8+ {[%clk 0:00:20.1]} 1-0

[Event "*** Titled Tuesday Blitz"]
[Site "Chess.com"]
[Date "2020.12.29"]
[Round "2"]
[White "Meri-Arabidze"]
[Black "ajdemipopushi"]
[Result "1-0"]
[WhiteElo "2635"]
[BlackElo "2339"]
[TimeControl "180+1"]
[EndTime "10:18:12 PST"]
[Termination "Meri-Arabidze won on time"]

1. Nf3 {[%clk 0:03:00.9]} 1... c5 {[%clk 0:03:00]} 2. c4 {[%clk 0:03:01.7]} 2...
g6 {[%clk 0:02:59.7]} 3. Nc3 {[%clk 0:03:02.6]} 3... Bg7 {[%clk 0:03:00.1]} 4.
g3 {[%clk 0:03:03.3]} 4... Nc6 {[%clk 0:03:00.2]} 5. Bg2 {[%clk 0:03:04]} 5...
e6 {[%clk 0:03:00.7]} 6. O-O {[%clk 0:03:04.1]} 6... Nge7 {[%clk 0:03:01]} 7. e3
{[%clk 0:02:59.7]} 7... O-O {[%clk 0:02:59.9]} 8. d4 {[%clk 0:02:59.9]} 8...
cxd4 {[%clk 0:03:00.1]} 9. exd4 {[%clk 0:03:00.7]} 9... d5 {[%clk 0:02:59.8]}
10. cxd5 {[%clk 0:02:56.2]} 10... Nxd5 {[%clk 0:02:59.6]} 11. Bg5 {[%clk
0:02:53.1]} 11... Qb6 {[%clk 0:02:29.4]} 12. Na4 {[%clk 0:02:36.8]} 12... Qa5
{[%clk 0:02:26.3]} 13. Rc1 {[%clk 0:02:13.3]} 13... h6 {[%clk 0:02:09.7]} 14.
Bd2 {[%clk 0:02:12]} 14... Qd8 {[%clk 0:02:09.3]} 15. Re1 {[%clk 0:02:05.5]}
15... Kh7 {[%clk 0:02:07.4]} 16. Re4 {[%clk 0:01:34.7]} 16... Nde7 {[%clk
0:01:53.9]} 17. Nc3 {[%clk 0:01:24.6]} 17... Nf5 {[%clk 0:01:26.1]} 18. Bf4
{[%clk 0:01:12]} 18... Nfxd4 {[%clk 0:01:08.6]} 19. Nxd4 {[%clk 0:01:12.6]}
19... Nxd4 {[%clk 0:01:08.4]} 20. Bxh6 {[%clk 0:00:37.7]} 20... Bxh6 {[%clk
0:00:58.5]} 21. Rxd4 {[%clk 0:00:38]} 21... Qb6 {[%clk 0:00:28.4]} 22. Rh4
{[%clk 0:00:37.4]} 22... Kg7 {[%clk 0:00:26.2]} 23. Rc2 {[%clk 0:00:36.5]} 23...
Bg5 {[%clk 0:00:25.9]} 24. Rc4 {[%clk 0:00:31.6]} 24... Rd8 {[%clk 0:00:15.3]}
25. Qe2 {[%clk 0:00:31.8]} 25... Bf6 {[%clk 0:00:12.4]} 26. Ne4 {[%clk 0:00:31]}
26... e5 {[%clk 0:00:10.4]} 27. Nxf6 {[%clk 0:00:29.6]} 27... Qxf6 {[%clk
0:00:10.1]} 28. Rc7 {[%clk 0:00:29.7]} 28... Be6 {[%clk 0:00:09.4]} 29. Rxb7
{[%clk 0:00:23.7]} 29... Rac8 {[%clk 0:00:09.2]} 30. Rbc7 {[%clk 0:00:22.5]}
30... Rxc7 {[%clk 0:00:09.2]} 31. Rxc7 {[%clk 0:00:23.4]} 31... Qg5 {[%clk
0:00:06.3]} 32. h4 {[%clk 0:00:21.2]} 32... Qf6 {[%clk 0:00:03.8]} 33. Rxa7
{[%clk 0:00:21]} 33... Rc8 {[%clk 0:00:02.3]} 34. Kh2 {[%clk 0:00:19.2]} 34...
Qf5 {[%clk 0:00:01.7]} 35. Ra5 {[%clk 0:00:18.1]} 1-0